Cogmind - Beta 16.1 @@@ ROGUE MODE // 2026.02.17 @ 23:14:57 Player: HMaeght Result: Destroyed by TF-5SN(R) with Subdweller Beam Cannon Performance ------------- Evolutions (0) 0 Regions Visited (2) 400 Robots Destroyed (19) 95 Value Destroyed (361) 361 Prototype IDs (2) 40 Alien Tech Used (0) 0 Bonus (0) 0 TOTAL SCORE: 896 Bonus ------- None Cogmind --------- Core Integrity 0/250 Matter 242/300 Energy 250/250 System Corruption 0% Temperature Cool (9) Movement Walking (680) Ox8 Location -10/Subcaves Parts ------- > --- POWER (1) -------- Ion Engine > --- PROPULSION (2) --- Aluminum Leg > --- UTILITY (2) ------ Huge Storage Unit Targeting Computer > --- WEAPON (2) ------- Grenade Launcher > --- INVENTORY (25) --- Light Ion Engine Light Ion Engine Light Ion Engine Light Ion Engine Light Ion Engine Light Ion Engine Hover Unit Huge Storage Unit Huge Storage Unit Huge Storage Unit High-capacity Matter Pod (200) Sensor Array Signal Interpreter Signal Interpreter Signal Interpreter Seismic Detector Targeting Computer ECM Suite Weapon Shielding Hacking Suite Tractor Beam Datajack Peak State ------------ > --- POWER ------------ Ion Engine > --- PROPULSION ------- Aluminum Leg Aluminum Leg > --- UTILITY ---------- Huge Storage Unit Targeting Computer > --- WEAPON ----------- Light Assault Rifle Light Assault Rifle > --- INVENTORY -------- Ion Engine Light Ion Engine Light Ion Engine Light Ion Engine Light Ion Engine Light Ion Engine Aluminum Leg Hover Unit Large Matter Pod High-capacity Matter Pod Signal Interpreter Signal Interpreter Signal Interpreter Targeting Computer ECM Suite Weapon Shielding Hacking Suite Datajack [Rating: 9] Favorites ----------- Power Ion Engine Engine Ion Engine Propulsion Aluminum Leg Leg Aluminum Leg Utility Huge Storage Unit Device Seismic Detector Storage Huge Storage Unit Processor Targeting Computer Weapon Light Assault Rifle Ballistic Gun Light Assault Rifle Launcher Grenade Launcher Build | -11 -10 -10 ------- Run | Yrd Mat Sub Slots Evolved . | . . . Power . | . . . Propulsion . | . . . Utility . | . . . Weapon . | . . . Parts Attached 18 | 7 8 3 Power 4 | 1 2 1 Engine 4 | 1 2 1 Core . | . . . Reactor . | . . . Propulsion 5 | 2 2 1 Treads . | . . . Leg 5 | 2 2 1 Wheel . | . . . Hover . | . . . Flight . | . . . Utility 5 | 2 3 . Device 1 | 1 . . Storage 3 | 1 2 . Processor 1 | . 1 . Hackware . | . . . Protection . | . . . Artifact . | . . . Weapon 4 | 2 1 1 Energy Gun . | . . . Energy Cannon . | . . . Ballistic Gun 3 | 2 1 . Ballistic Cannon . | . . . Launcher 1 | . . 1 Special Weapon . | . . . Impact Weapon . | . . . Slashing Weapon . | . . . Piercing Weapon . | . . . Special Melee Weapon . | . . . Unidentified Prototypes . | . . . Parts Lost 8 | . 3 5 Power 2 | . 1 1 Propulsion 2 | . . 2 Utility 1 | . 1 . Weapon 3 | . 1 2 Highest Loss Streak 4 | . 2 4 To Critical Strikes . | . . . Average Backups 17 | 3 16 24 Power 5 | 1 4 6 Propulsion 1 | 1 1 1 Utility 9 | . 8 14 Weapon . | . . . Tool/Special . | . . . Unused Backups 30 | 1 7 22 Power 8 | . 2 6 Propulsion 4 | 1 2 1 Utility 16 | . 2 14 Weapon 1 | . 1 . Tool/Special 1 | . . 1 Average Slot Usage (%) 99 | . 99 96 Engine 13 | . 13 13 Leg 27 | . 27 26 Device 3 | . 3 . Storage 14 | . 15 14 Processor 9 | . 9 14 Ballistic Gun 27 | . 27 26 Peak Build Rating 9 | 7 9 9 Average Rating 8 | 5 8 8 On Entrance 5 | . 7 9 Avg Prop Armor Cover (%) . | . . . Naked Turns . | . . . Heaviest Build 92 | 13 92 89 Greatest Support 20 | 20 20 20 Greatest Overweight (x) 26 | 1 4 26 Average Overweight (x) 2 | . 2 4 Largest Inventory Capacity 25 | 8 25 25 Average Capacity 20 | 7 20 25 Most Carried 25 | 7 25 25 Average Carried 17 | 3 16 24 Final Capacity 25 | 8 25 25 Final Carried 25 | 7 25 22 Class Distribution -------------------- 100% | Mutant Dominant Class ---------------- Mutant | -10/Materials Mutant | -10/Subcaves Resources | -11 -10 -10 ----------- Run | Yrd Mat Sub Matter Collected 972 | 254 718 . Remotely . | . . . Salvage Created 567 | 80 459 28 Parts 44 | 7 35 2 Haulers Intercepted 2 | . 2 . Recyclers Shooed 4 | 1 3 . Parts Field Recycled . | . . . Retrieved Matter . | . . . Parts Self-Destructed . | . . . Prevented . | . . . Parts Restored . | . . . Kills | -11 -10 -10 ------- Run | Yrd Mat Sub Combat Hostiles Destroyed 12 | . 11 1 Guns 11 | . 11 . AOE 1 | . . 1 Classes Destroyed 8 | 2 5 1 Tunneler 1 | 1 . . Hauler 2 | . 2 . Recycler 1 | 1 . . Operator 1 | . 1 . Watcher 2 | . 2 . Swarmer 6 | . 6 . Grunt 5 | . 5 . Subdweller 1 | . . 1 Best Kill Streak 3 | 1 3 1 Combat Bots Only 3 | . 3 1 Max Kills in Single Turn 1 | 1 1 1 Gunslinging . | . . . Exploded 1 | . . 1 Melee . | . . . Uniques/NPCs Destroyed . | . . . Combat | -11 -10 -10 -------- Run | Yrd Mat Sub Hostile Shots Fired 115 | . 88 27 Missed 26 | . 13 13 Hits 89 | . 75 14 Projectile 89 | . 75 14 Damage Taken 1099 | . 686 413 Core 256 | . 138 118 Absorbed by Shields . | . . . Core Remaining (%) 100 | 100 . . Volleys Fired 102 | 10 89 3 Largest 2 | 2 2 2 Hottest 50 | 40 40 50 Shots Fired 193 | 20 167 6 Gun 190 | 20 167 3 Cannon . | . . . Launcher 3 | . . 3 Special . | . . . Kinetic 190 | 20 167 3 Thermal . | . . . Explosive 3 | . . 3 Electromagnetic . | . . . Robot Hit Streak 15 | 4 15 5 Robot Miss Streak 5 | 2 5 . Penetration Max . | . . . Secondary Targets 1 | . 1 . Max Gunslinging Chain 1 | . 1 . Shots Hit Robots 117 | 12 101 4 Core Hits 46 | 4 39 3 Critical Kills . | . . . Critical Parts Destroyed . | . . . Critical Strikes . | . . . Melee Attacks . | . . . Impact . | . . . Slashing . | . . . Piercing . | . . . Sneak Attacks . | . . . Combat Hostiles . | . . . Follow-up Attacks . | . . . Damage Inflicted 1128 | 98 835 195 Guns 954 | 98 835 21 Cannons . | . . . Explosions 174 | . . 174 Melee . | . . . Ramming . | . . . Kinetic 954 | 98 835 21 Thermal . | . . . Explosive 174 | . . 174 Electromagnetic . | . . . Impact . | . . . Slashing . | . . . Piercing . | . . . Highest Corruption . | . . . Average Corruption . | . . . Corruption Purged . | . . . Corruption Blocked . | . . . Overload Shots . | . . . Overflow Damage . | . . . Projectiles . | . . . Explosions . | . . . Melee . | . . . Knockbacks . | . . . Impact . | . . . Kinetic . | . . . Secondary . | . . . Self-Inflicted Damage 84 | . . 84 Shots 3 | . . 3 Rammed . | . . . Targets Rammed . | . . . Kicked . | . . . Crushed . | . . . Highest Temperature 18 | . 18 . Average Temperature 7 | . 7 . Received Heat Transfer 210 | . 114 96 Siege Activations . | . . . Martial Activations . | . . . Shielding Activations . | . . . Robots Disrupted . | . . . Combat Hostiles . | . . . Robots Corrupted . | . . . Combat Hostiles . | . . . Parts Fried . | . . . Impact Corruptions . | . . . Robots Melted . | . . . Combat Hostiles . | . . . Parts Melted . | . . . Heat Transferred . | . . . Parts Sabotaged . | . . . Parts Stolen . | . . . Parts Stripped . | . . . Power Chain Reactions . | . . . Alert | -11 -10 -10 ------- Run | Yrd Mat Sub Maximum Alert Level . | . . . Low Security (%) 100 | 100 100 . Level 1 . | . . . Level 2 . | . . . Level 3 . | . . . Level 4 . | . . . Level 5 . | . . . High Security . | . . . Max Security . | . . . Peak Influence 90 | 5 90 . Initial . | . . . Average 22 | . 23 . Influence Increases 405 | 10 395 . Destroy 0b10 Robot/C 220 | . 220 . Destroy 0b10 Robot/NC 35 | 10 25 . Destroy Leader 58 | . 58 . Successful Hack 17 | . 17 . Lose Combat Pursuer 75 | . 75 . Influence Decreases 405 | 10 389 6 Entered New Map 4 | . . 4 Time Decay 371 | 10 359 2 Lost Part 20 | . 20 . Purge Threat 10 | . 10 . Squads Dispatched 2 | . 2 . Investigation 1 | . 1 . Extermination . | . . . Reinforcement 1 | . 1 . Assault . | . . . Garrison . | . . . Intercept . | . . . Searches Triggered . | . . . Construction Impeded . | . . . Haulers Reinforced . | . . . Active Scanning Responses . | . . . Cargo Convoy Interrupts . | . . . Stealth | -11 -10 -10 --------- Run | Yrd Mat Sub Distress Signals 2 | . 2 . Communications Jammed . | . . . Distress Signals . | . . . Times Spotted 37 | . 34 3 Peak Tracking Total 4 | . 4 2 Tactical Retreats 4 | . 4 . Traps | -11 -10 -10 ------- Run | Yrd Mat Sub Traps Triggered 1 | . 1 . Indirectly . | . . . Trap Hack Attempts . | . . . Triggered . | . . . Disarmed 1 | . 1 . Reprogrammed . | . . . Reused . | . . . Traps Extracted . | . . . Installed . | . . . Triggered . | . . . Machines | -11 -10 -10 ---------- Run | Yrd Mat Sub Machines Disabled . | . . . Max in Single Turn . | . . . Machines Repaired . | . . . Machines Dismantled . | . . . Machines Sabotaged . | . . . Overloaded Fab Kills . | . . . Hacking | -11 -10 -10 --------- Run | Yrd Mat Sub Machines Accessed 10 | . 10 . Terminals 7 | . 7 . Fabricators . | . . . Repair Stations 1 | . 1 . Recycling Units 2 | . 2 . Scanalyzers . | . . . Garrison Access . | . . . Total Hacks 33 | . 33 . Successful 22 | . 22 . Failed 10 | . 10 . Catastrophic 2 | . 2 . Database Lockouts 1 | . 1 . Manual 5 | . 5 . Terminals 28 | . 28 . Fabricators . | . . . Repair Stations 3 | . 3 . Recycling Units 2 | . 2 . Scanalyzers . | . . . Garrison Access . | . . . Terminal Hacks 20 | . 20 . Record 10 | . 10 . Robot Analysis 1 | . 1 . Prototype ID Bank 1 | . 1 . Recycling Unit Index 1 | . 1 . Alert Level 1 | . 1 . Unreport Threat 1 | . 1 . Locate Traps 1 | . 1 . Disarm Traps 1 | . 1 . Dispatch Records 1 | . 1 . Zone Layout 2 | . 2 . Fabricator Hacks . | . . . Repair Station Hacks 1 | . 1 . Scan Component 1 | . 1 . Recycling Unit Hacks 1 | . 1 . Retrieve Components 1 | . 1 . Scanalyzer . | . . . Garrison Access Hacks . | . . . Unauthorized Hacks . | . . . Terminals . | . . . Fabricators . | . . . Repair Stations . | . . . Recycling Units . | . . . Scanalyzers . | . . . Garrison Access . | . . . Data Cores Recovered . | . . . Used . | . . . Hacking Detections 9 | . 9 . Full Trace Events . | . . . Feedback Events . | . . . Feedback Blocked . | . . . Robot Schematics Acquired . | . . . Robots Built . | . . . Authchips . | . . . Time . | . . . Total Robot Build Rating . | . . . Part Schematics Acquired . | . . . Parts Built . | . . . Authchips . | . . . Time . | . . . Total Part Build Rating . | . . . Part Studies Acquired . | . . . Parts Repaired . | . . . Time . | . . . Parts Recycled . | . . . Recycled Matter . | . . . Retrieved Matter . | . . . Retrieved Components 3 | . 3 . Parts Scanalyzed . | . . . Part Schematics Acquired . | . . . Parts Damaged . | . . . Bothacking | -11 -10 -10 ------------ Run | Yrd Mat Sub Used RIF Installer . | . . . Robots Hacked . | . . . Non-combat . | . . . Combat . | . . . Robot Hacks Applied . | . . . Relay Couplers Released . | . . . Fabnet Peak Effective % . | . . . Robots Rewired . | . . . Allies Hacked . | . . . Hacks Repelled . | . . . Allies | -11 -10 -10 -------- Run | Yrd Mat Sub Total Allies . | . . . Largest Group . | . . . Highest-Rated Group . | . . . Highest-Rated Ally . | . . . Total Orders . | . . . Ally Attacks . | . . . Total Damage . | . . . Kills . | . . . Allies Corrupted . | . . . Allies Melted . | . . . Intel | -11 -10 -10 ------- Run | Yrd Mat Sub Active Infowar (turns) 881 | 38 843 . Seismic 881 | 38 843 . Robot Analysis Total 1 | . 1 . Derelict Logs Recovered . | . . . Drone Launches . | . . . Drone Recoveries . | . . . Exploration | -11 -10 -10 ------------- Run | Yrd Mat Sub Turns Passed 3897 | 112 3293 492 Spaces Moved 1113 | 54 947 112 Core 4 | 3 . 1 Treads . | . . . Legs 1109 | 51 947 111 Wheels . | . . . Hover . | . . . Flight . | . . . Fastest Speed 50 | 50 120 400 Average Speed 292 | 125 288 413 Slowest Speed 1350 | 190 400 1350 Overloaded Moves . | . . . Propulsion Burnouts . | . . . Robots Hopped . | . . . Potential Cave-ins . | . . . Cave-ins Triggered . | . . . Exploration Rate (%) 38 | 3 99 12 Regions Visited 2 Branch Regions 1 Pre-discovered Areas . | . . . Known Exits Taken . | . . . Unknown Exits Taken 2 | 1 1 . Scrap Searched . | . . . Spaces Dug . | . . . Terrain Destroyed 15 | . . 15 Melee . | . . . Projectile . | . . . AOE 15 | . . 15 Terrain Rammed . | . . . Walls Destroyed . | . . . Machines Disabled . | . . . Actions | -11 -10 -10 --------- Run | Yrd Mat Sub Total 1603 | 80 1386 137 Wait 318 | . 299 19 Move 1111 | 53 946 112 Hop . | . . . Pick Up 39 | 9 30 . Fast Attach 10 | 6 4 . Attach 7 | 1 3 3 Detach 1 | . 1 . Swap 1 | . 1 . Drop 14 | 1 13 . Fire 102 | 10 89 3 Melee . | . . . Ram . | . . . Kick . | . . . Crush . | . . . Escape Stasis . | . . . Rewire . | . . . Trap . | . . . Miscellaneous . | . . . Route ------- -11/Scrapyard -10/Materials (discovered 5 exits: [*Mat x3] / [*Min] / [*Sub]) -10/Subcaves History --------- Turn | Location | Event 2 | -11/Scrapyard | Met Revision 17 33 | -11/Scrapyard | Discovered new exit (range 15) 113 | -11/Scrapyard | Entered Materials 142 | -10/Materials | Discovered new exit (range 16) 304 | -10/Materials | Build established: Mutant 766 | -10/Materials | Discovered new exit (range 7) 1311 | -10/Materials | Central database locked down 1459 | -10/Materials | Discovered new exit (range 5) 1649 | -10/Materials | Discovered new exit (range 10) 2083 | -10/Materials | Discovered new exit (range 15) 2266 | -10/Materials | Core integrity fell below 50% 3406 | -10/Materials | Entered Subcaves 3407 | -10/Subcaves | Approached by a straggling Scientist 3833 | -10/Subcaves | Core integrity fell below 20% 3877 | -10/Subcaves | Lost 4 parts (1p2n1w) 3894 | -10/Subcaves | Ambushed by Subdweller buried in earth 3898 | -10/Subcaves | Destroyed by TF-5SN(R) with Subdweller Beam Cannon Last Messages --------------- 03410_ 7P-C9X(c): "Hey, let me tag along and I can get us both out of this nasty situation. At least I think I can... The group I got separated from was talking about a shortcut back to the UFD." 7P-C9X(c): "I think it's somewhere southeast of here" 7P-C9X(c): "I think it's somewhere east of here" 03838_ Lgt. Assault Rifle destroyed. 03843_ Aluminum Leg destroyed. 03843_ Lgt. Ion Engine destroyed. 03846_ Aluminum Leg destroyed. 03846_ P0-1LA(R) destroyed. 7P-C9X(c): "I think it's somewhere east of here" 03871_ Subatomizers dissect the Sub. Monowheel. [Achievement: Do Not Disturb] 03895_ TF-5SN(R): "ARGHSUB!" 03897_ 6J-8JY(R) destroyed. 03898_ Lgt. Assault Rifle destroyed. Map ----- +----------------------------------------------------+ | #### #????????????????????????????????????? | | ## #????????????????????????????????????? | | ##???????????????????????????????????? | | #???????????????????????????????????? | | #???????????????????????????????????? | | ## ##???????????????????????????????????? | | #### ##????????????????????????????????????? | | ##?####?????????????????????????????????????? | | ##?????????????????????????????????????????? | | #?????????????????????????????????????????? | | #?????????????????????????????????????????? | | #?????????????????????????????????????????? | | ##?????????????????????????????????????????? | | #??????????????????????????????????????????? | | ##?????????????????????????????????????????? | | #?????????????????????????????????????????? | | #?????????????????????????????????????????? | | ##?????????????????????????????????????????? | | #??????????????????????????????????????????? | | ### #??????????????????????????????????????????? | | ##?####??????????????????????????????????????????? | | ??????#####??????????#######?????????????????????? | | ####### ##?????????# ##??#?????????????????? | | # ## #?????????# # #?????????????????? | | #?????????## ###???????#???? ??? | | #????????#####@ &R ##??### # # ??? | | #### # ##??????## ### !%! ### ??? | | ##??### #?????## # ??? | | ????## #????## # ## #?????? | | ????# #?#### # #???????? | | ????# ### & #??????? | | ????# ## ## ]%= #?????? | | ????# ## !& #??? | | ????## ?# ## ## #### ?? | | ?????###?# #### #### ##??????? ?? | | ?????????# #??# ##???####??????????? | | ?????????# ### #??# ##??????????????????? | | ?????????## ##?## ##??# ###???????????????????? | | ??????????#####???####???###?????????????????????? | | ?????????????????????????????????????????????????? | | ?????????????????????????????????????????????????? | | ?????????????????????????????????????????????????? | | ?????????????????????????????????????????????????? | | ?????????????????????????????????????????????????? | | ?????????????????????????????????????????????????? | | ?????????????????????????????????????????????????? | | ?????????????????????????????????????????????????? | | ?????????????????????????????????????????????????? | | ?????????????????????????????????????????????????? | | ?????????????????????????????????????????????????? | +----------------------------------------------------+ Best States ------------- Heat Dissipation 25 Energy Generation 10 Energy Capacity 250 Matter Stores 300 Matter Capacity 300 Sight Range 16 Terrain Scan Density 10 Evasion (%) 55 Targeting Accuracy 5 Item Schematics ----------------- None Robot Schematics ------------------ None Fabricated ------------ Nothing Repaired ---------- Nothing Studied --------- None Alien Tech Used ----------------- None Achievements -------------- Do Not Disturb You Again Challenges ------------ None Game ------ Seed CompanionIntegrityCoupler Manual? 0 Play Time 00:37:36 Cumulative 14.2 hours Start 2026.02.17 @ 22:27:24 End 2026.02.17 @ 23:14:57 Sessions 1 Manual Loads 0 Difficulty Rogue Special Mode None Game No. 10 Rogue 10 Adventurer 0 Explorer 0 Win Type - Total 0 Types 0/0/0/0/0/0/0/0/0/0 Lore% 6 Gallery% 13 Achievement% 13 Wizard Run 0 Options --------- Layout 1 ASCII 0 Keyboard 1 Movement Numpad Keybinds 0 Fullscreen 1 Font 24/Smallcaps Map View 50x35 Zoom Use 0% Tactical HUD 1 Map Filters NONE Filters NONE Steam 1 RUN: 0f7fa807-48b6-4169-b13b-6f23b0e77487